Cogmind - Beta 13 X1 @@@ ROGUE MODE // 2023.12.13 @ 17:15:05 Player: IzRey Result: Destroyed by S-27 Virus with Autogun Performance ------------- Evolutions (5) 2500 Regions Visited (6) 1200 Robots Destroyed (2) 10 Value Destroyed (13) 13 Prototype IDs (0) 0 Alien Tech Used (0) 0 Bonus (0) 0 TOTAL SCORE: 3723 Bonus ------- None Cogmind --------- Core Integrity 0/1000 Matter 106/300 Energy 97/100 System Corruption 3% Temperature Cool (0) Movement Core (50) Location -5/Factory Parts ------- > --- POWER (2) -------- (None) > --- PROPULSION (8) --- (None) > --- UTILITY (5) ------ Improved Signal Interpreter > --- WEAPON (2) ------- (None) > --- INVENTORY (5) ---- Hardened Medium Armor Plating Minigun Grenade Launcher Great Axe Peak State ------------ > --- POWER ------------ Ion Engine Light Angular Momentum Engine > --- PROPULSION ------- Improved Medium Treads Armored Medium Treads Cesium-ion Thruster Xenon Bombardment Thruster Nuclear Pulse Thruster Nuclear Pulse Thruster Nuclear Pulse Thruster Nuclear Pulse Thruster > --- UTILITY ---------- Improved Signal Interpreter Transmission Jammer Improved Medium Armor Plating > --- WEAPON ----------- (None) > --- INVENTORY -------- Improved Medium Treads Improved Gravmag System Hardened Medium Armor Plating Minigun Grenade Launcher [Rating: 56] Favorites ----------- Power Ion Engine Engine Ion Engine Propulsion Nuclear Pulse Thruster Treads Improved Medium Treads Leg Aluminum Leg Hover Unit Improved Gravmag System Flight Unit Nuclear Pulse Thruster Utility Transmission Jammer Device Transmission Jammer Storage Small Storage Unit Processor Improved Signal Interpreter Protection Improved Medium Armor Plating Weapon Light Assault Rifle Energy Gun Medium Laser Ballistic Gun Light Assault Rifle Build | -11 -10 -9 -8 -7 -6 -5 ------- Run | Jun Mat Mat Mat Fac Fac Fac Slots Evolved 10 | . . 2 2 2 2 2 Power 1 | . . . . . 1 . Propulsion 6 | . . 2 1 1 1 1 Utility 3 | . . . 1 1 . 1 Weapon . | . . . . . . . Parts Attached 34 | 2 . . 3 . 18 11 Power 2 | . . . . . 2 . Engine 2 | . . . . . 2 . Core . | . . . . . . . Reactor . | . . . . . . . Propulsion 24 | 2 . . . . 12 10 Treads 8 | 2 . . . . 3 3 Leg . | . . . . . . . Wheel . | . . . . . . . Hover 3 | . . . . . 2 1 Flight 13 | . . . . . 7 6 Utility 7 | . . . 2 . 4 1 Device 1 | . . . . . 1 . Storage . | . . . . . . . Processor 1 | . . . . . . 1 Hackware . | . . . . . . . Protection 5 | . . . 2 . 3 . Artifact . | . . . . . . . Weapon 1 | . . . 1 . . . Energy Gun . | . . . . . . . Energy Cannon . | . . . . . . . Ballistic Gun 1 | . . . 1 . . . Ballistic Cannon . | . . . . . . . Launcher . | . . . . . . . Special Weapon . | . . . . . . . Impact Weapon . | . . . . . . . Slashing Weapon . | . . . . . . . Piercing Weapon . | . . . . . . . Special Melee Weapon . | . . . . . . . Unidentified Prototypes . | . . . . . . . Parts Lost 24 | . . . 4 . . 20 Power 2 | . . . . . . 2 Propulsion 19 | . . . 2 . . 17 Utility 2 | . . . 1 . . 1 Weapon 1 | . . . 1 . . . Highest Loss Streak 8 | . . . 3 . . 8 To Critical Strikes 1 | . . . . . . 1 Average Slot Usage (%) 37 | . 42 33 20 . 37 49 Engine 3 | . . . . . 5 4 Treads 8 | . 28 22 12 . 6 7 Flight 14 | . . . . . 18 22 Device 2 | . . . . . 2 4 Processor 1 | . . . . . . 4 Protection 1 | . . . 3 . 1 2 Ballistic Gun 1 | . 14 11 5 . . . Naked Turns 191 | . . . 1 104 86 . Heaviest Build 23 | 13 1 1 3 . 23 22 Greatest Support 35 | 20 3 3 3 3 35 29 Greatest Overweight (x) . | . . . . . . . Average Overweight (x) . | . . . . . . . Largest Inventory Capacity 8 | 8 5 5 5 5 5 5 Average Capacity 5 | 5 5 5 5 5 5 5 Most Carried 8 | 8 2 2 4 3 5 5 Average Carried 3 | 1 1 2 3 3 3 4 Final Capacity 5 | 5 5 5 5 5 5 5 Final Carried 5 | 1 2 2 3 3 5 4 Class Distribution -------------------- 100% | Mutant Dominant Class ---------------- Mutant | -10/Materials Mutant | -9/Materials Mutant | -8/Materials Mutant | -7/Factory Mutant | -6/Factory Mutant | -5/Factory Resources | -11 -10 -9 -8 -7 -6 -5 ----------- Run | Jun Mat Mat Mat Fac Fac Fac Matter Collected 237 | 233 . . . . . 4 Remotely . | . . . . . . . Salvage Created 85 | 85 . . . . . . Parts 8 | 8 . . . . . . Haulers Intercepted . | . . . . . . . Recyclers Shooed 1 | 1 . . . . . . Parts Field Recycled . | . . . . . . . Retrieved Matter . | . . . . . . . Parts Self-Destructed . | . . . . . . . Prevented . | . . . . . . . Kills | -11 -10 -9 -8 -7 -6 -5 ------- Run | Jun Mat Mat Mat Fac Fac Fac Combat Hostiles Destroyed . | . . . . . . . Classes Destroyed 2 | 2 . . . . . . Tunneler 1 | 1 . . . . . . Recycler 1 | 1 . . . . . . Best Kill Streak 1 | 1 . . . . . . Combat Bots Only . | . . . . . . . Max Kills in Single Turn 1 | 1 . . . . . . Gunslinging . | . . . . . . . Exploded . | . . . . . . . Melee . | . . . . . . . Uniques/NPCs Destroyed . | . . . . . . . Combat | -11 -10 -9 -8 -7 -6 -5 -------- Run | Jun Mat Mat Mat Fac Fac Fac Damage Taken 4363 | . 145 92 665 158 201 3102 Core 1491 | . 56 23 206 158 34 1014 Absorbed by Shields 5 | . . . . . . 5 Core Remaining (%) 84 | 100 77 94 62 77 96 . Volleys Fired 13 | 13 . . . . . . Largest 1 | 1 . . . . . . Hottest 20 | 20 . . . . . . Shots Fired 13 | 13 . . . . . . Gun 13 | 13 . . . . . . Cannon . | . . . . . . . Launcher . | . . . . . . . Special . | . . . . . . . Kinetic 13 | 13 . . . . . . Thermal . | . . . . . . . Explosive . | . . . . . . . Electromagnetic . | . . . . . . . Robot Hit Streak 7 | 7 . . . . . . Robot Miss Streak 1 | 1 . . . . . . Penetration Max . | . . . . . . . Secondary Targets . | . . . . . . . Shots Hit Robots 11 | 11 . . . . . . Core Hits 3 | 3 . . . . . . Critical Kills 2 | 2 . . . . . . Critical Parts Destroyed . | . . . . . . . Critical Strikes 2 | 2 . . . . . . Destroy 2 | 2 . . . . . . Melee Attacks . | . . . . . . . Impact . | . . . . . . . Slashing . | . . . . . . . Piercing . | . . . . . . . Sneak Attacks . | . . . . . . . Combat Hostiles . | . . . . . . . Follow-up Attacks . | . . . . . . . Damage Inflicted 133 | 88 9 . 23 11 2 . Guns 88 | 88 . . . . . . Cannons . | . . . . . . . Explosions . | . . . . . . . Melee . | . . . . . . . Ramming 45 | . 9 . 23 11 2 . Kinetic 88 | 88 . . . . . . Thermal . | . . . . . . . Explosive . | . . . . . . . Electromagnetic . | . . . . . . . Impact . | . . . . . . . Slashing . | . . . . . . . Piercing . | . . . . . . . Highest Corruption 3 | . . 2 1 1 . 3 Average Corruption 2 | . . 2 1 1 . 2 Corruption Purged . | . . . . . . . Corruption Blocked . | . . . . . . . Effects 5 | . . . . . . 5 Message Errors 1 | . . . . . . 1 Matter Fused 1 | . . . . . . 1 Heat Flow Errors 1 | . . . . . . 1 Energy Discharges 1 | . . . . . . 1 Parts Rejected 1 | . . . . . . 1 Overload Shots . | . . . . . . . Overflow Damage . | . . . . . . . Projectiles . | . . . . . . . Explosions . | . . . . . . . Melee . | . . . . . . . Knockbacks . | . . . . . . . Impact . | . . . . . . . Kinetic . | . . . . . . . Secondary . | . . . . . . . Self-Inflicted Damage 19 | . 4 . 9 5 1 . Shots . | . . . . . . . Rammed 11 | . 1 . 8 1 1 . Targets Rammed 11 | . 1 . 8 1 1 . Kicked . | . . . . . . . Crushed . | . . . . . . . Highest Temperature 311 | . . . 5 . 311 94 Average Temperature 184 | . . . 5 . 190 41 Received Heat Transfer 681 | . 36 12 243 108 . 282 Effects 2 | . . . . . 2 . Short Circuit 2 | . . . . . 2 . Siege Activations . | . . . . . . . Robots Corrupted . | . . . . . . . Combat Hostiles . | . . . . . . . Parts Fried . | . . . . . . . Impact Corruptions . | . . . . . . . Robots Melted . | . . . . . . . Combat Hostiles . | . . . . . . . Parts Melted . | . . . . . . . Heat Transferred . | . . . . . . . Parts Sabotaged . | . . . . . . . Parts Stolen . | . . . . . . . Parts Stripped . | . . . . . . . Power Chain Reactions . | . . . . . . . Missiles Intercepted . | . . . . . . . Alert | -11 -10 -9 -8 -7 -6 -5 ------- Run | Jun Mat Mat Mat Fac Fac Fac Peak Influence 219 | 10 147 95 219 133 162 178 Initial 94 | . 6 61 39 94 65 29 Average 95 | 5 52 86 79 110 113 93 Maximum Alert Level 1 | . . . 1 . . . Low Security (%) 99 | 100 100 100 93 100 100 100 Level 1 . | . . . 6 . . . Level 2 . | . . . . . . . Level 3 . | . . . . . . . Level 4 . | . . . . . . . Level 5 . | . . . . . . . High Security . | . . . . . . . Max Security . | . . . . . . . Squads Dispatched 14 | . 2 1 2 2 2 5 Investigation 6 | . 2 . . 1 1 2 Extermination 2 | . . . . . 1 1 Reinforcement 6 | . . 1 2 1 . 2 Assault . | . . . . . . . Garrison . | . . . . . . . Intercept . | . . . . . . . Searches Triggered . | . . . . . . . Construction Impeded . | . . . . . . . Haulers Reinforced . | . . . . . . . Active Scanning Responses . | . . . . . . . Cargo Convoy Interrupts . | . . . . . . . Stealth | -11 -10 -9 -8 -7 -6 -5 --------- Run | Jun Mat Mat Mat Fac Fac Fac Distress Signals 4 | . . 1 1 1 . 1 Communications Jammed . | . . . . . . . Distress Signals . | . . . . . . . Times Spotted 114 | . 14 13 25 10 8 44 Peak Tracking Total 23 | . 11 13 15 8 3 23 Tactical Retreats 21 | . 2 . 5 . 4 10 Traps | -11 -10 -9 -8 -7 -6 -5 ------- Run | Jun Mat Mat Mat Fac Fac Fac Traps Triggered 4 | . 1 1 . . . 2 Indirectly . | . . . . . . . Trap Hack Attempts . | . . . . . . . Triggered . | . . . . . . . Disarmed . | . . . . . . . Reprogrammed . | . . . . . . . Reused . | . . . . . . . Traps Extracted . | . . . . . . . Installed . | . . . . . . . Triggered . | . . . . . . . Machines | -11 -10 -9 -8 -7 -6 -5 ---------- Run | Jun Mat Mat Mat Fac Fac Fac Machines Disabled . | . . . . . . . Max in Single Turn . | . . . . . . . Machines Repaired . | . . . . . . . Machines Sabotaged . | . . . . . . . Overloaded Fab Kills . | . . . . . . . Hacking | -11 -10 -9 -8 -7 -6 -5 --------- Run | Jun Mat Mat Mat Fac Fac Fac Machines Accessed 15 | . 2 2 3 1 2 5 Terminals 15 | . 2 2 3 1 2 5 Fabricators . | . . . . . . . Repair Stations . | . . . . . . . Recycling Units . | . . . . . . . Scanalyzers . | . . . . . . . Garrison Access . | . . . . . . . Total Hacks 36 | . 3 6 7 3 4 13 Successful 10 | . 2 4 . 1 1 2 Failed 26 | . 1 2 7 2 3 11 Catastrophic 10 | . 1 . 2 1 2 4 Database Lockouts . | . . . . . . . Manual 25 | . 1 2 6 3 3 10 Terminals 36 | . 3 6 7 3 4 13 Fabricators . | . . . . . . . Repair Stations . | . . . . . . . Recycling Units . | . . . . . . . Scanalyzers . | . . . . . . . Garrison Access . | . . . . . . . Terminal Hacks 8 | . 2 2 . 1 1 2 Level Access Points 1 | . . . . 1 . . Branch Access Points 2 | . 1 . . . 1 . Emergency Access Points 1 | . . . . . . 1 Terminal Index 1 | . . 1 . . . . Locate Traps 2 | . 1 . . . . 1 Registered Components 1 | . . 1 . . . . Fabricator Hacks . | . . . . . . . Repair Station Hacks . | . . . . . . . Recycling Unit Hacks . | . . . . . . . Scanalyzer . | . . . . . . . Garrison Access Hacks . | . . . . . . . Unauthorized Hacks 2 | . . 2 . . . . Terminals 2 | . . 2 . . . . Botnet 1 | . . 1 . . . . Disrupt 1 | . . 1 . . . . Fabricators . | . . . . . . . Repair Stations . | . . . . . . . Recycling Units . | . . . . . . . Scanalyzers . | . . . . . . . Garrison Access . | . . . . . . . Data Cores Recovered . | . . . . . . . Used . | . . . . . . . Hacking Detections 14 | . 1 2 3 1 2 5 Full Trace Events 5 | . 1 . 1 1 1 1 Feedback Events 1 | . . . . 1 . . Corruption 1 | . . . . 1 . . Feedback Blocked . | . . . . . . . Robot Schematics Acquired . | . . . . . . . Robots Built . | . . . . . . . Authchips . | . . . . . . . Time . | . . . . . . . Total Robot Build Rating . | . . . . . . . Part Schematics Acquired . | . . . . . . . Parts Built . | . . . . . . . Authchips . | . . . . . . . Time . | . . . . . . . Total Part Build Rating . | . . . . . . . Parts Repaired . | . . . . . . . Time . | . . . . . . . Parts Recycled . | . . . . . . . Recycled Matter . | . . . . . . . Retrieved Matter . | . . . . . . . Retrieved Components . | . . . . . . . Parts Scanalyzed . | . . . . . . . Part Schematics Acquired . | . . . . . . . Parts Damaged . | . . . . . . . Bothacking | -11 -10 -9 -8 -7 -6 -5 ------------ Run | Jun Mat Mat Mat Fac Fac Fac Used RIF Installer . | . . . . . . . Robots Hacked . | . . . . . . . Non-combat . | . . . . . . . Combat . | . . . . . . . Robot Hacks Applied . | . . . . . . . Relay Couplers Released . | . . . . . . . Fabnet Peak Effective % . | . . . . . . . Robots Rewired . | . . . . . . . Allies Hacked . | . . . . . . . Hacks Repelled . | . . . . . . . Allies | -11 -10 -9 -8 -7 -6 -5 -------- Run | Jun Mat Mat Mat Fac Fac Fac Total Allies . | . . . . . . . Largest Group . | . . . . . . . Highest-Rated Group . | . . . . . . . Highest-Rated Ally . | . . . . . . . Total Orders . | . . . . . . . Ally Attacks . | . . . . . . . Total Damage . | . . . . . . . Kills . | . . . . . . . Allies Corrupted . | . . . . . . . Allies Melted . | . . . . . . . Intel | -11 -10 -9 -8 -7 -6 -5 ------- Run | Jun Mat Mat Mat Fac Fac Fac Robot Analysis Total . | . . . . . . . Derelict Logs Recovered . | . . . . . . . Drone Launches . | . . . . . . . Drone Recoveries . | . . . . . . . Exploration | -11 -10 -9 -8 -7 -6 -5 ------------- Run | Jun Mat Mat Mat Fac Fac Fac Turns Passed 1418 | 45 72 64 148 104 514 471 Spaces Moved 2429 | 28 141 128 269 206 918 739 Core 1000 | 27 141 128 269 206 178 51 Treads . | . . . . . . . Legs 1 | 1 . . . . . . Wheels . | . . . . . . . Hover . | . . . . . . . Flight 1428 | . . . . . 740 688 Fastest Speed 35 | 50 50 50 50 50 35 36 Average Speed 53 | 52 50 50 50 50 51 59 Slowest Speed 120 | 120 50 50 50 50 74 80 Overloaded Moves . | . . . . . . . Propulsion Burnouts . | . . . . . . . Robots Hopped 15 | . . . . . 3 12 Cave-ins Triggered . | . . . . . . . Exploration Rate (%) 25 | 3 44 23 38 8 28 32 Regions Visited 6 Branch Regions . Pre-discovered Areas . | . . . . . . . Known Exits Taken 1 | . . . . 1 . . Unknown Exits Taken 5 | 1 1 1 1 . 1 . Scrap Searched . | . . . . . . . Spaces Dug . | . . . . . . . Terrain Destroyed . | . . . . . . . Melee . | . . . . . . . Projectile . | . . . . . . . AOE . | . . . . . . . Terrain Rammed . | . . . . . . . Walls Destroyed . | . . . . . . . Machines Disabled . | . . . . . . . Actions | -11 -10 -9 -8 -7 -6 -5 --------- Run | Jun Mat Mat Mat Fac Fac Fac Total 2512 | 50 142 127 282 206 954 751 Wait 22 | . . . . . 16 6 Move 2399 | 27 141 127 269 206 911 718 Hop 12 | . . . . . 3 9 Pick Up 3 | . 1 . 1 . . 1 Fast Attach 24 | 1 . . 1 . 13 9 Attach 8 | 1 . . 2 . 3 2 Detach 9 | 2 . . 2 . 5 . Swap 2 | . . . . . 2 . Drop 6 | 6 . . . . . . Fire 13 | 13 . . . . . . Melee . | . . . . . . . Ram 8 | . . . 7 . 1 . Kick . | . . . . . . . Crush . | . . . . . . . Escape Stasis 6 | . . . . . . 6 Rewire . | . . . . . . . Trap . | . . . . . . . Miscellaneous . | . . . . . . . Route ------- -11/Junkyard -10/Materials (discovered 2 exits: *Mat / Min) -9/Materials -8/Materials -7/Factory (discovered 4 exits: *Fac x4) -6/Factory (discovered 3 exits: *Fac / *Low x2) -5/Factory (discovered 1 exit: *Upp) History --------- Turn | Location | Event 1 | -11/Junkyard | Discovered new exit (range 2) 46 | -11/Junkyard | Entered Materials 95 | -10/Materials | Identified exit to Mines 111 | -10/Materials | Discovered new exit (range 16) 118 | -10/Materials | Entered another Materials area 118 | -9/Materials | Evolved 2 slots: Propulsion x2 179 | -9/Materials | Discovered new exit (range 7) 182 | -9/Materials | Entered another Materials area 182 | -8/Materials | Evolved 2 slots: Propulsion x1, Utility x1 318 | -8/Materials | Build established: Mutant 326 | -8/Materials | Discovered new exit (range 4) 327 | -8/Materials | Lost 3 parts (2n1w) 330 | -8/Materials | Entered Factory 330 | -7/Factory | Evolved 2 slots: Propulsion x1, Utility x1 425 | -7/Factory | Discovered new exit (range 16) 425 | -7/Factory | Identified exit to Factory 434 | -7/Factory | Entered another Factory area 434 | -6/Factory | Evolved 2 slots: Power x1, Propulsion x1 507 | -6/Factory | Identified exit to Lower Caves 916 | -6/Factory | Discovered new exit (range 5) 948 | -6/Factory | Entered another Factory area 948 | -5/Factory | Evolved 2 slots: Propulsion x1, Utility x1 1293 | -5/Factory | Discovered new exit (range 16) 1304 | -5/Factory | Lost 8 parts (7n1u) 1324 | -5/Factory | Identified exit to Upper Caves 1348 | -5/Factory | Core integrity fell below 50% 1380 | -5/Factory | Lost 3 parts (3n) 1410 | -5/Factory | Core integrity fell below 20% 1419 | -5/Factory | Destroyed by S-27 Virus with Autogun Last Messages --------------- 01363_ Triggered Stasis Trap. 01363_ A bubble of rippling energy engulfs the area. 01363_ Field strength at 87. 01363_ Field strength at 74. 01364_ Field strength at 61. 01365_ Field strength at 48. 01366_ Field strength at 35. 01367_ Field strength at 22. 01368_ Field strength at 4. 01369_ Stasis field depleted. 01370_ W-25 Informer sends out distress signal. 01373_ System corrupted: Matter fused (-8). 01373_ Slug penetrates Wall. 01386_ Field Propulsion Drive destroyed. 01392_ System corrupted: Transmission Jammer rejected. 01396_ Imp. Gravmag System destroyed. 01397_ Field Propulsion Drive destroyed. 01414_ Triggered Alarm Trap. 01414_ An alarm sounds. 01414_ ALERT: Alarm triggered, dispatching investigation squad. Map ----- +----------------------------------------------------+ | | | | | | | | | | | | | | | | | | | | | | | | | | | | | | | | | | | ???????###???###?????????????????????????????????? | | ??????? ?????????????????????????????????? | | ??????? ????#????????????????????????????? | | ????# """ """ """ ?????????????????????????????? | | ????# """ """ """ ?????????????????????????????? | | ????# """ """ """ ?#????????????????????????????? | | ????# !#????????????????????????????? | | ????# """ #???##########???????????????? | | ????# " F" """ ????#@ss #???????????????? | | ????# """" """ #???#s"""s #???????????????? | | ????# #???#s"Y" #???????????????? | | ????######/#+############s" " #???????????????? | | ########## + s #???????????????? | | # ########## """ #???????????????? | | """"" / #????????# s""" #???????????????? | | """"" # #????????# """ #???????????????? | | """ + #????????# #???????????????? | | [ # #????????##########???????????????? | | """"" # #?????????????????????????????????? | | % """"" # ???????????????????????????????? | | """ # ?????????????????????????????? | | !# ???????????????????????????? | | ! # """"" ??????????????????????????? | | # """""???????????????????????????? | | # """?????????????????????????????? | | ######/### ???????????????????????????? | | ""??????????????????????????????? | | ""??????????????????????????????? | | ""??????????????????????????????? | | ?????????????????????????????? | | ^ ????????????????????????????? | | ####################?????????????????????????????? | | ?????????????????????????????????????????????????? | +----------------------------------------------------+ Best States ------------- Heat Dissipation 40 Energy Generation 23 Energy Capacity 300 Matter Stores 300 Matter Capacity 300 Sight Range 16 Terrain Scan Density 10 Armor Coverage 225 Evasion (%) 63 Recoil Reduction 1 Item Schematics ----------------- None Robot Schematics ------------------ None Fabricated ------------ Nothing Alien Tech Used ----------------- None Achievements -------------- None Challenges ------------ None Game ------ Seed MissileNovaKinecellerator Manual? 0 Play Time 00:33:04 Cumulative 540.5 hours Start 2023.12.13 @ 16:44:19 End 2023.12.13 @ 17:15:05 Sessions 1 Manual Loads 0 Difficulty Rogue Special Mode None Game No. 74 Rogue 57 Adventurer 17 Explorer 0 Win Type - Total 1 Types 1/0/0/0/0/0/0/0/0 Lore% 51 Gallery% 62 Achievement% 52 Wizard Run 0 Options --------- ASCII 0 Keyboard 1 Movement Vi Keybinds 0 Fullscreen 1 Font 18/SmallcapsGlow Map View 76x50 Tactical HUD 1 Map Filters NONE Filters NONE Steam 1 RUN: ad72c417-2e56-4f23-8914-3017f6b9db2a